[Event "29th Czech Open-Rapid 2018"]
[Site "Pardubice"]
[Date "2018.07.19"]
[Round "5"]
[White "Mosesov, Danylo"]
[Black "Biolek, Richard"]
[Result "1/2-1/2"]
[ECO "C45"]
[WhiteElo "2150"]
[BlackElo "2364"]
[Annotator "NA"]
[PlyCount "136"]
[EventDate "2018.07.18"]
[EventType "swiss"]
[EventCountry "CZE"]
[SourceTitle "playchess.com"]
[Source "ChessBase"]
[SourceQuality "1"]
[TimeControl "900+10"]

1. d4 {[%emt 0:00:00]} Nc6 {[%emt 0:00:00]} 2. e4 {[%emt 0:00:00]} e5 {[%emt 0:00:00]} 3. Nf3 {[%emt 0:00:07]} exd4 {[%emt 0:00:00]} 4. Nxd4 {[%emt 0:00:10]} Nf6 {[%emt 0:00:00]} 5. Nxc6 {[%emt 0:00:26]} bxc6 {[%emt 0:00:00]} 6. e5 {[%emt 0:00:01]} Qe7 {[%emt 0:00:04]} 7. Qe2 {[%emt 0:00:01]} Nd5 {[%emt 0:00:01]} 8. c4 {[%emt 0:00:00]} Ba6 {[%emt 0:00:02]} 9. h4 {[%emt 0:01:23]} O-O-O {[%emt 0:02:57]} 10. Bg5 {[%emt 0:01:38]} f6 {[%emt 0:00:35]} 11. exf6 {[%emt 0:00:02]} Nxf6 {[%emt 0:00:07]} 12. Qxe7 {[%emt 0:00:05]} Bxe7 {[%emt 0:00:02]} 13. Nc3 {[%emt 0:00:00]} Bb4 {[%emt 0:00:12]} 14. O-O-O {[%emt 0:00:18]} Bxc3 {[%emt 0:00:02]} 15. bxc3 {[%emt 0:00:01]} Rde8 {[%emt 0:00:30]} 16. Bd3 {[%emt 0:01:00]} Ne4 {[%emt 0:00:15]} 17. Bxe4 {[%emt 0:00:47]} Rxe4 {[%emt 0:00:02]} 18. Rhe1 {[%emt 0:00:01]} Rhe8 {[%emt 0:00:23]} 19. Re3 {[%emt 0:00:28]} Rxe3 {[%emt 0:00:48]} 20. Bxe3 {[%emt 0:00:02]} Bxc4 {[%emt 0:00:01]} 21. Rd4 {[%emt 0:00:26]} Bxa2 22. Ra4 {[%emt 0:00:02]} Bd5 {[%emt 0:01:29]} 23. Rxa7 {[%emt 0:00:01]} Re4 {[%emt 0:00:13]} 24. g3 {[%emt 0:00:44]} h5 {[%emt 0:00:01]} 25. Ra8+ {[%emt 0:00:35]} Kb7 {[%emt 0:00:01]} 26. Rh8 {[%emt 0:00:02]} g6 {[%emt 0:00:05]} 27. Rf8 {[%emt 0:00:32]} Re6 {[%emt 0:00:11]} 28. Kd2 {[%emt 0:00:09]} Be4 {[%emt 0:00:05]} 29. Ke2 {[%emt 0:00:58]} Bf5 {[%emt 0:00:08]} 30. Kd2 {[%emt 0:00:27]} d6 {[%emt 0:00:03]} 31. Rf7 {[%emt 0:00:19]} c5 {[%emt 0:00:05]} 32. Bg5 {[%emt 0:00:50]} Re8 {[%emt 0:00:01]} 33. Bf4 {[%emt 0:00:13]} Kc6 {[%emt 0:00:03]} 34. Bg5 {[%emt 0:00:09]} Ra8 {[%emt 0:00:16]} 35. Ke3 {[%emt 0:00:49]} Ra3 {[%emt 0:00:23]} 36. Bf6 {[%emt 0:00:08]} d5 {[%emt 0:00:17]} 37. Kd2 {[%emt 0:00:34]} d4 {[%emt 0:00:22]} 38. cxd4 {[%emt 0:00:28]} cxd4 {[%emt 0:00:02]} 39. Be5 {[%emt 0:00:20]} Kd5 {[%emt 0:00:02]} 40. Bxc7 {[%emt 0:00:33]} Ra2+ {[%emt 0:00:02]} 41. Kd1 {[%emt 0:00:34]} Ke4 {[%emt 0:02:18]} 42. Bf4 {[%emt 0:00:40]} Kd3 {[%emt 0:00:04]} 43. Kc1 {[%emt 0:00:19]} Rc2+ {[%emt 0:00:36]} 44. Kb1 {[%emt 0:00:15]} Rxf2 {[%emt 0:00:04]} 45. Rc7 {[%emt 0:00:28]} Ke2+ {[%emt 0:00:24]} 46. Kb2 {[%emt 0:00:33]} Kf3+ {[%emt 0:00:57]} 47. Kb3 {[%emt 0:00:19]} d3 {[%emt 0:00:22]} 48. Rc1 {[%emt 0:01:02]} d2 {[%emt 0:00:35]} 49. Rd1 {[%emt 0:00:23]} Kg4 {[%emt 0:01:03]} 50. Rxd2 {[%emt 0:01:25]} Rxf4 {[%emt 0:00:02]} 51. gxf4 {[%emt 0:00:01]} Kxh4 {[%emt 0:00:01]} 52. Rg2 {[%emt 0:00:22]} Bg4 {[%emt 0:00:03]} 53. Kc3 {[%emt 0:00:13]} Kh3 {[%emt 0:00:00]} 54. Rg1 {[%emt 0:00:35]} Kh2 {[%emt 0:00:02]} 55. Ra1 {[%emt 0:00:01]} Kg3 {[%emt 0:00:24]} 56. Kd2 {[%emt 0:00:21]} Kxf4 {[%emt 0:00:11]} 57. Ke1 {[%emt 0:00:01]} Kg3 {[%emt 0:00:07]} 58. Kf1 {[%emt 0:00:25]} h4 {[%emt 0:00:18]} 59. Kg1 {[%emt 0:00:12]} h3 {[%emt 0:00:43]} 60. Ra2 {[%emt 0:00:01]} g5 {[%emt 0:00:01]} 61. Rb2 {[%emt 0:00:12]} Bf3 {[%emt 0:00:11]} 62. Rc2 {[%emt 0:00:25]} g4 {[%emt 0:00:02]} 63. Rb2 {[%emt 0:00:08]} Kh4 {[%emt 0:00:24]} 64. Rb4 {[%emt 0:00:22]} Kg3 {[%emt 0:00:00]} 65. Rb2 {[%emt 0:00:01]} Be4 {[%emt 0:00:01]} 66. Re2 {[%emt 0:00:22]} Kf3 {[%emt 0:00:01]} 67. Rf2+ {[%emt 0:00:43]} Ke3 {[%emt 0:00:02]} 68. Kh2 {[%emt 0:00:26]} Kxf2 1/2-1/2

[Event "29th Czech Open-Rapid 2018"]
[Site "Pardubice"]
[Date "2018.07.19"]
[Round "5"]
[White "Valenta, Vit"]
[Black "Hajek, Jiri"]
[Result "1-0"]
[ECO "B01"]
[WhiteElo "2144"]
[BlackElo "2024"]
[Annotator "NA"]
[PlyCount "65"]
[EventDate "2018.07.18"]
[EventType "swiss"]
[EventCountry "CZE"]
[SourceTitle "playchess.com"]
[Source "ChessBase"]
[SourceQuality "1"]
[TimeControl "900+10"]

1. e4 {[%emt 0:00:00]} d5 {[%emt 0:00:00]} 2. exd5 {[%emt 0:00:00]} Qxd5 {[%emt 0:00:00]} 3. Nc3 {[%emt 0:00:00]} Qa5 {[%emt 0:00:00]} 4. g3 {[%emt 0:00:00]} c6 {[%emt 0:00:05]} 5. Bg2 {[%emt 0:00:00]} Bf5 {[%emt 0:00:07]} 6. Nf3 {[%emt 0:00:05]} Nd7 {[%emt 0:00:38]} 7. O-O {[%emt 0:00:05]} e6 {[%emt 0:00:09]} 8. d3 {[%emt 0:00:04]} Ngf6 {[%emt 0:00:15]} 9. Re1 {[%emt 0:00:32]} Be7 {[%emt 0:00:15]} 10. Nd4 {[%emt 0:00:30]} O-O {[%emt 0:01:13]} 11. Nxf5 {[%emt 0:00:38]} Qxf5 {[%emt 0:00:03]} 12. Ne4 {[%emt 0:00:29]} Rfd8 {[%emt 0:00:18]} 13. Bf4 {[%emt 0:00:43]} e5 {[%emt 0:00:47]} 14. Be3 {[%emt 0:00:32]} Nd5 {[%emt 0:00:57]} 15. Bd2 {[%emt 0:00:30]} Re8 {[%emt 0:01:11]} 16. Qe2 {[%emt 0:00:24]} Rad8 {[%emt 0:00:08]} 17. Nc3 {[%emt 0:00:57]} Nxc3 {[%emt 0:03:39]} 18. Bxc3 {[%emt 0:00:04]} Bc5 {[%emt 0:00:38]} 19. a4 {[%emt 0:03:14]} f6 {[%emt 0:02:14]} 20. b4 {[%emt 0:01:01]} Bd4 {[%emt 0:01:31]} 21. Bxd4 {[%emt 0:00:09]} exd4 {[%emt 0:00:01]} 22. Qxe8+ {[%emt 0:00:02]} Rxe8 {[%emt 0:00:01]} 23. Rxe8+ {[%emt 0:00:03]} Kf7 {[%emt 0:00:04]} 24. Re4 {[%emt 0:00:22]} Ne5 {[%emt 0:00:43]} 25. Rxd4 {[%emt 0:01:14]} Nf3+ {[%emt 0:01:04]} 26. Bxf3 {[%emt 0:00:15]} Qxf3 {[%emt 0:00:07]} 27. Rd7+ {[%emt 0:01:03]} Kg6 {[%emt 0:00:08]} 28. Re1 {[%emt 0:00:13]} h5 {[%emt 0:00:09]} 29. Ree7 {[%emt 0:01:15]} h4 {[%emt 0:00:47]} 30. Rxg7+ {[%emt 0:00:10]} Kf5 {[%emt 0:00:25]} 31. Rde7 {[%emt 0:01:11]} h3 {[%emt 0:00:41]} 32. g4+ {[%emt 0:00:04]} Kf4 {[%emt 0:00:11]} 33. Re4+ {[%emt 0:00:02]} 1-0

[Event "29th Czech Open-Rapid 2018"]
[Site "Pardubice"]
[Date "2018.07.19"]
[Round "5"]
[White "Roessler, Ulrike"]
[Black "Sinauridze, Simons"]
[Result "0-1"]
[ECO "B76"]
[WhiteElo "2137"]
[BlackElo "1962"]
[Annotator "NA"]
[PlyCount "96"]
[EventDate "2018.07.18"]
[EventType "swiss"]
[EventCountry "CZE"]
[SourceTitle "playchess.com"]
[Source "ChessBase"]
[SourceQuality "1"]
[TimeControl "900+10"]

1. e4 {[%emt 0:00:00]} c5 {[%emt 0:00:00]} 2. Nf3 {[%emt 0:00:00]} d6 {[%emt 0:00:00]} 3. d4 {[%emt 0:00:00]} cxd4 {[%emt 0:00:00]} 4. Nxd4 {[%emt 0:00:02]} Nf6 {[%emt 0:00:01]} 5. Nc3 {[%emt 0:00:01]} g6 {[%emt 0:00:01]} 6. Be3 {[%emt 0:00:05]} Bg7 {[%emt 0:00:03]} 7. f3 {[%emt 0:00:04]} O-O {[%emt 0:00:04]} 8. Qd2 {[%emt 0:00:05]} Nc6 {[%emt 0:00:02]} 9. O-O-O {[%emt 0:00:07]} d5 {[%emt 0:00:05]} 10. Qe1 {[%emt 0:00:15]} e5 {[%emt 0:00:39]} 11. exd5 {[%emt 0:00:40]} Nxd4 {[%emt 0:00:18]} 12. Bg5 {[%emt 0:01:23]} Qc7 {[%emt 0:02:09]} 13. f4 {[%emt 0:00:54]} Nxd5 {[%emt 0:01:01]} 14. Rxd4 {[%emt 0:00:24]} exd4 {[%emt 0:00:23]} 15. Nxd5 {[%emt 0:00:01]} Qc5 {[%emt 0:00:28]} 16. Nf6+ {[%emt 0:00:49]} Bxf6 {[%emt 0:00:48]} 17. Bxf6 {[%emt 0:00:01]} Bf5 {[%emt 0:00:06]} 18. Qd2 {[%emt 0:00:16]} Rac8 {[%emt 0:00:25]} 19. Bd3 {[%emt 0:00:31]} Rc6 {[%emt 0:01:31]} 20. Be5 {[%emt 0:00:26]} f6 {[%emt 0:00:35]} 21. Bxf5 {[%emt 0:00:02]} fxe5 {[%emt 0:00:04]} 22. Be4 {[%emt 0:00:00]} Rc7 {[%emt 0:01:01]} 23. g3 {[%emt 0:01:58]} exf4 {[%emt 0:01:21]} 24. gxf4 {[%emt 0:00:01]} Qd6 {[%emt 0:00:05]} 25. Rf1 {[%emt 0:01:21]} Rcf7 {[%emt 0:00:38]} 26. f5 {[%emt 0:00:21]} gxf5 {[%emt 0:00:23]} 27. Qg2+ {[%emt 0:00:01]} Rg7 {[%emt 0:00:35]} 28. Bd5+ {[%emt 0:00:01]} Kh8 {[%emt 0:00:08]} 29. Qf3 {[%emt 0:00:08]} Qxh2 {[%emt 0:01:58]} 30. Qa3 {[%emt 0:00:30]} Rc8 {[%emt 0:01:30]} 31. Qd3 {[%emt 0:00:24]} Qe5 {[%emt 0:02:21]} 32. Bb3 {[%emt 0:00:03]} f4 {[%emt 0:00:11]} 33. a3 {[%emt 0:00:03]} Rf8 {[%emt 0:00:08]} 34. Kb1 {[%emt 0:00:02]} Qe3 {[%emt 0:00:16]} 35. Qb5 {[%emt 0:00:46]} f3 {[%emt 0:00:31]} 36. Qc5 {[%emt 0:00:02]} Qf4 {[%emt 0:00:15]} 37. Bc4 {[%emt 0:01:56]} f2 {[%emt 0:00:12]} 38. Bd3 {[%emt 0:00:06]} Rg1 {[%emt 0:00:43]} 39. Ka2 {[%emt 0:00:09]} Rxf1 {[%emt 0:00:09]} 40. Bxf1 {[%emt 0:00:01]} Qf6 {[%emt 0:00:14]} 41. Qxa7 {[%emt 0:00:11]} Rf7 {[%emt 0:00:11]} 42. Qb8+ {[%emt 0:00:03]} Kg7 {[%emt 0:00:02]} 43. Qg3+ {[%emt 0:00:02]} Kh8 {[%emt 0:00:04]} 44. Qb8+ Rf8 45. Qc7 {[%emt 0:00:08]} Qf7+ {[%emt 0:00:09]} 46. Qxf7 {[%emt 0:00:39]} Rxf7 {[%emt 0:00:01]} 47. Kb3 {[%emt 0:00:05]} Re7 {[%emt 0:00:05]} 48. Kc4 {[%emt 0:00:03]} Re1 {[%emt 0:00:02]} 0-1

[Event "29th Czech Open-Rapid 2018"]
[Site "Pardubice"]
[Date "2018.07.19"]
[Round "5"]
[White "Krouzel, Jaroslav"]
[Black "Nehyba, Martin"]
[Result "*"]
[ECO "A83"]
[WhiteElo "2132"]
[BlackElo "1947"]
[Annotator "NA"]
[PlyCount "49"]
[EventDate "2018.07.18"]
[EventType "swiss"]
[EventCountry "CZE"]
[SourceTitle "playchess.com"]
[Source "ChessBase"]
[SourceQuality "1"]
[TimeControl "900+10"]

1. d4 {[%emt 0:00:00]} f5 {[%emt 0:00:00]} 2. e4 {[%emt 0:00:00]} fxe4 {[%emt 0:00:07]} 3. Nc3 {[%emt 0:00:00]} Nf6 {[%emt 0:00:03]} 4. Bg5 {[%emt 0:00:00]} d6 {[%emt 0:00:41]} 5. Bxf6 {[%emt 0:01:35]} exf6 {[%emt 0:00:04]} 6. Nxe4 {[%emt 0:00:02]} d5 {[%emt 0:00:05]} 7. Ng3 {[%emt 0:00:04]} Be6 {[%emt 0:00:17]} 8. Nf3 {[%emt 0:00:05]} Bd6 {[%emt 0:00:04]} 9. Bd3 {[%emt 0:00:03]} Nd7 {[%emt 0:00:07]} 10. O-O {[%emt 0:00:17]} O-O {[%emt 0:00:03]} 11. Qd2 {[%emt 0:00:38]} c6 {[%emt 0:00:46]} 12. Rae1 {[%emt 0:00:12]} Re8 {[%emt 0:00:08]} 13. c3 {[%emt 0:00:47]} Nf8 {[%emt 0:00:41]} 14. Nh4 {[%emt 0:00:24]} Qd7 {[%emt 0:01:42]} 15. Nhf5 {[%emt 0:01:59]} Bc7 {[%emt 0:00:08]} 16. Re2 {[%emt 0:01:48]} Ng6 {[%emt 0:00:55]} 17. Bc2 {[%emt 0:01:47]} Bf4 {[%emt 0:01:57]} 18. Qd3 {[%emt 0:00:36]} Bxg3 {[%emt 0:00:01]} 19. hxg3 {[%emt 0:00:15]} Bxf5 {[%emt 0:00:02]} 20. Rxe8+ {[%emt 0:00:06]} Rxe8 {[%emt 0:00:02]} 21. Qxf5 {[%emt 0:00:08]} Qxf5 {[%emt 0:00:01]} 22. Bxf5 {[%emt 0:00:03]} Re2 {[%emt 0:00:02]} 23. Rb1 {[%emt 0:00:31]} Kf7 {[%emt 0:00:22]} 24. Kf1 {[%emt 0:00:23]} Re8 {[%emt 0:00:09]} 25. Bd3 {[%emt 0:00:17]} *

[Event "29th Czech Open-Rapid 2018"]
[Site "Pardubice"]
[Date "2018.07.19"]
[Round "5"]
[White "Tsvetkov, Andrey"]
[Black "Bogdanov, Egor"]
[Result "1-0"]
[ECO "E92"]
[WhiteElo "2124"]
[BlackElo "2410"]
[Annotator "NA"]
[PlyCount "91"]
[EventDate "2018.07.18"]
[EventType "swiss"]
[EventCountry "CZE"]
[SourceTitle "playchess.com"]
[Source "ChessBase"]
[SourceQuality "1"]
[TimeControl "900+10"]

1. d4 {[%emt 0:00:00]} Nf6 {[%emt 0:00:00]} 2. c4 {[%emt 0:00:00]} g6 {[%emt 0:00:00]} 3. Nc3 {[%emt 0:00:00]} Bg7 4. e4 O-O {[%emt 0:00:00]} 5. Nf3 {[%emt 0:00:00]} d6 {[%emt 0:00:00]} 6. Be2 {[%emt 0:00:00]} e5 {[%emt 0:00:00]} 7. Be3 {[%emt 0:00:00]} Ng4 {[%emt 0:00:02]} 8. Bg5 {[%emt 0:00:00]} f6 {[%emt 0:00:01]} 9. Bh4 {[%emt 0:00:00]} g5 {[%emt 0:00:01]} 10. Bg3 {[%emt 0:00:00]} Nh6 {[%emt 0:00:01]} 11. h3 Nc6 {[%emt 0:00:27]} 12. d5 {[%emt 0:01:52]} Nd4 {[%emt 0:00:19]} 13. Nxd4 {[%emt 0:00:02]} exd4 {[%emt 0:00:02]} 14. Qxd4 {[%emt 0:00:01]} f5 15. Qd1 {[%emt 0:00:06]} f4 {[%emt 0:01:56]} 16. Bh2 {[%emt 0:00:20]} Be5 {[%emt 0:00:06]} 17. f3 {[%emt 0:00:10]} Qf6 {[%emt 0:00:10]} 18. Qd2 {[%emt 0:00:16]} Nf7 {[%emt 0:00:37]} 19. Bg1 {[%emt 0:00:07]} Bd7 {[%emt 0:00:09]} 20. O-O-O {[%emt 0:00:10]} a6 {[%emt 0:00:08]} 21. c5 {[%emt 0:01:39]} Rfb8 {[%emt 0:00:33]} 22. cxd6 {[%emt 0:01:07]} cxd6 {[%emt 0:00:10]} 23. Bb6 {[%emt 0:00:21]} Rc8 {[%emt 0:00:01]} 24. Kb1 {[%emt 0:00:00]} a5 {[%emt 0:01:09]} 25. Rc1 {[%emt 0:00:19]} a4 {[%emt 0:00:06]} 26. a3 {[%emt 0:00:03]} Nh8 {[%emt 0:01:52]} 27. Nb5 {[%emt 0:00:36]} Rxc1+ {[%emt 0:04:14]} 28. Rxc1 {[%emt 0:00:01]} Rc8 {[%emt 0:00:00]} 29. Rxc8+ {[%emt 0:01:45]} Bxc8 {[%emt 0:00:01]} 30. Qc2 {[%emt 0:00:20]} Bd7 {[%emt 0:00:01]} 31. Nc7 {[%emt 0:05:23]} Ng6 {[%emt 0:00:44]} 32. Ne6 {[%emt 0:00:23]} Bxe6 {[%emt 0:00:13]} 33. dxe6 {[%emt 0:00:03]} Kg7 {[%emt 0:00:07]} 34. Bc4 {[%emt 0:00:39]} Nf8 {[%emt 0:00:40]} 35. Qxa4 {[%emt 0:00:13]} d5 {[%emt 0:03:28]} 36. Bxd5 {[%emt 0:02:09]} Kh6 {[%emt 0:02:08]} 37. Qb3 {[%emt 0:00:13]} Ng6 {[%emt 0:00:18]} 38. Ba5 {[%emt 0:00:41]} Nh4 {[%emt 0:00:26]} 39. Qxb7 {[%emt 0:00:26]} Ng6 {[%emt 0:00:14]} 40. Qb3 {[%emt 0:00:46]} Nh4 {[%emt 0:00:08]} 41. Bb4 {[%emt 0:00:05]} Ng6 {[%emt 0:00:12]} 42. Qc2 {[%emt 0:00:03]} Qd8 {[%emt 0:00:03]} 43. Qc6 {[%emt 0:00:09]} Kh5 {[%emt 0:00:09]} 44. Qd7 {[%emt 0:00:18]} Qh8 {[%emt 0:00:01]} 45. e7 {[%emt 0:00:10]} Nxe7 {[%emt 0:00:02]} 46. Bxe7 {[%emt 0:00:03]} 1-0

[Event "29th Czech Open-Rapid 2018"]
[Site "Pardubice"]
[Date "2018.07.19"]
[Round "5"]
[White "Fedotov, Konstantin"]
[Black "Potapov, Alexander"]
[Result "0-1"]
[ECO "C23"]
[WhiteElo "2123"]
[BlackElo "2407"]
[Annotator "NA"]
[PlyCount "74"]
[EventDate "2018.07.18"]
[EventType "swiss"]
[EventCountry "CZE"]
[SourceTitle "playchess.com"]
[Source "ChessBase"]
[SourceQuality "1"]
[TimeControl "900+10"]

1. e4 {[%emt 0:00:59]} e5 {[%emt 0:00:00]} 2. Bc4 {[%emt 0:00:04]} Nc6 {[%emt 0:00:00]} 3. d3 {[%emt 0:00:10]} Nf6 {[%emt 0:00:09]} 4. h3 {[%emt 0:00:03]} Na5 {[%emt 0:00:02]} 5. Bb3 {[%emt 0:00:06]} d5 {[%emt 0:00:03]} 6. exd5 {[%emt 0:00:08]} Nxb3 {[%emt 0:00:02]} 7. axb3 {[%emt 0:00:01]} Nxd5 {[%emt 0:00:02]} 8. Ne2 {[%emt 0:00:08]} Bc5 {[%emt 0:00:12]} 9. O-O {[%emt 0:00:05]} O-O {[%emt 0:00:02]} 10. Nbc3 {[%emt 0:00:10]} Be6 {[%emt 0:00:29]} 11. Ra4 {[%emt 0:00:32]} Nxc3 {[%emt 0:04:04]} 12. bxc3 {[%emt 0:00:03]} b5 {[%emt 0:00:09]} 13. Re4 {[%emt 0:02:30]} Bd6 {[%emt 0:00:02]} 14. f4 {[%emt 0:00:02]} Bd5 {[%emt 0:01:49]} 15. Re3 {[%emt 0:03:14]} Re8 {[%emt 0:00:22]} 16. f5 {[%emt 0:00:02]} a5 {[%emt 0:00:26]} 17. Rg3 {[%emt 0:01:31]} Qd7 {[%emt 0:02:08]} 18. Bg5 {[%emt 0:00:58]} Bf8 {[%emt 0:00:30]} 19. Qd2 {[%emt 0:00:24]} Kh8 {[%emt 0:00:22]} 20. Rg4 {[%emt 0:02:52]} f6 {[%emt 0:00:12]} 21. Be3 {[%emt 0:00:25]} a4 {[%emt 0:00:00]} 22. bxa4 {[%emt 0:00:01]} bxa4 {[%emt 0:00:01]} 23. c4 {[%emt 0:00:01]} Bc6 {[%emt 0:00:32]} 24. Nc3 {[%emt 0:00:30]} a3 {[%emt 0:00:19]} 25. Na2 {[%emt 0:00:04]} Reb8 {[%emt 0:00:04]} 26. Qf2 {[%emt 0:01:40]} Rb2 {[%emt 0:00:27]} 27. Ra1 {[%emt 0:00:01]} Ba4 {[%emt 0:00:04]} 28. Qf3 {[%emt 0:01:13]} Rab8 {[%emt 0:00:53]} 29. Nc3 {[%emt 0:00:29]} Bxc2 {[%emt 0:00:39]} 30. c5 {[%emt 0:00:20]} R2b3 {[%emt 0:01:11]} 31. Ne4 {[%emt 0:00:57]} Rb1+ {[%emt 0:00:14]} 32. Rxb1 {[%emt 0:00:10]} Rxb1+ {[%emt 0:00:06]} 33. Kh2 {[%emt 0:00:02]} a2 {[%emt 0:00:52]} 34. Nxf6 {[%emt 0:00:03]} Rh1+ {[%emt 0:00:11]} 35. Kg3 {[%emt 0:00:10]} gxf6 {[%emt 0:00:36]} 36. Qa8 {[%emt 0:00:02]} Qf7 {[%emt 0:00:01]} 37. Bh6 {[%emt 0:00:47]} a1=Q {[%emt 0:00:04]} 0-1

[Event "29th Czech Open-Rapid 2018"]
[Site "Pardubice"]
[Date "2018.07.19"]
[Round "5"]
[White "Pein, Jonathan"]
[Black "Becker, Dirk"]
[Result "1/2-1/2"]
[ECO "C47"]
[WhiteElo "2123"]
[BlackElo "2288"]
[Annotator "NA"]
[PlyCount "108"]
[EventDate "2018.07.18"]
[EventType "swiss"]
[EventCountry "CZE"]
[SourceTitle "playchess.com"]
[Source "ChessBase"]
[SourceQuality "1"]
[TimeControl "900+10"]

1. e4 {[%emt 0:00:00]} e5 {[%emt 0:00:00]} 2. Nf3 {[%emt 0:00:00]} Nc6 {[%emt 0:00:00]} 3. Nc3 {[%emt 0:00:00]} Nf6 {[%emt 0:00:08]} 4. d4 {[%emt 0:00:00]} exd4 {[%emt 0:00:04]} 5. Nd5 {[%emt 0:00:00]} Be7 {[%emt 0:03:02]} 6. Bf4 {[%emt 0:00:02]} d6 {[%emt 0:00:05]} 7. Nxd4 {[%emt 0:00:01]} Nxd5 {[%emt 0:01:13]} 8. exd5 {[%emt 0:00:03]} Nxd4 {[%emt 0:00:21]} 9. Qxd4 {[%emt 0:00:01]} O-O {[%emt 0:00:08]} 10. Qd2 {[%emt 0:00:41]} Bf6 {[%emt 0:00:31]} 11. O-O-O {[%emt 0:00:01]} Bf5 {[%emt 0:00:11]} 12. f3 {[%emt 0:00:02]} h6 {[%emt 0:01:17]} 13. g4 {[%emt 0:00:41]} Bg6 {[%emt 0:00:30]} 14. Kb1 {[%emt 0:00:21]} Bh4 {[%emt 0:02:43]} 15. Bd3 {[%emt 0:00:40]} Qf6 {[%emt 0:00:17]} 16. Rhf1 {[%emt 0:02:32]} Bxd3 {[%emt 0:00:21]} 17. cxd3 {[%emt 0:00:02]} c5 {[%emt 0:01:51]} 18. Rg1 {[%emt 0:00:57]} Bg5 {[%emt 0:00:25]} 19. Bxg5 {[%emt 0:00:05]} hxg5 {[%emt 0:00:01]} 20. h4 {[%emt 0:00:43]} gxh4 {[%emt 0:02:10]} 21. f4 {[%emt 0:00:00]} Rae8 {[%emt 0:00:26]} 22. Rh1 {[%emt 0:00:29]} Qd4 {[%emt 0:01:05]} 23. Rxh4 {[%emt 0:00:37]} f5 {[%emt 0:00:00]} 24. Qh2 {[%emt 0:00:42]} Kf7 {[%emt 0:00:59]} 25. Rh7 {[%emt 0:01:11]} Qf6 {[%emt 0:00:34]} 26. Rg1 {[%emt 0:03:00]} Rg8 {[%emt 0:00:12]} 27. a3 {[%emt 0:02:03]} fxg4 {[%emt 0:00:32]} 28. Rxg4 {[%emt 0:00:02]} Ke7 {[%emt 0:00:10]} 29. f5 {[%emt 0:00:34]} Kd7 {[%emt 0:00:19]} 30. Rg6 {[%emt 0:00:01]} Qe7 {[%emt 0:00:10]} 31. f6 {[%emt 0:00:25]} Qe1+ {[%emt 0:00:13]} 32. Ka2 {[%emt 0:00:01]} Qe5 {[%emt 0:00:09]} 33. f7 {[%emt 0:00:21]} Qxd5+ {[%emt 0:00:01]} 34. b3 {[%emt 0:00:11]} Qxf7 {[%emt 0:00:01]} 35. Qxd6+ {[%emt 0:00:28]} Kc8 {[%emt 0:00:01]} 36. Rg2 {[%emt 0:00:52]} Rd8 {[%emt 0:00:28]} 37. Qxc5+ {[%emt 0:00:12]} Kb8 {[%emt 0:00:01]} 38. Qe5+ {[%emt 0:00:27]} Ka8 {[%emt 0:00:00]} 39. Rgxg7 {[%emt 0:01:06]} Rxg7 {[%emt 0:00:18]} 40. Qxg7 {[%emt 0:00:26]} Qf2+ {[%emt 0:00:02]} 41. Qb2 {[%emt 0:00:01]} Qf8 {[%emt 0:00:23]} 42. Qg2 {[%emt 0:00:53]} Rb8 {[%emt 0:00:01]} 43. d4 {[%emt 0:00:01]} a6 {[%emt 0:00:12]} 44. Qc2 {[%emt 0:00:43]} Qd6 {[%emt 0:00:07]} 45. Qe4 {[%emt 0:00:19]} Qf6 {[%emt 0:00:13]} 46. a4 {[%emt 0:00:17]} Qf2+ {[%emt 0:00:01]} 47. Ka3 {[%emt 0:00:04]} Qg1 {[%emt 0:00:08]} 48. Rh1 {[%emt 0:00:24]} Qf2 {[%emt 0:00:16]} 49. Rc1 {[%emt 0:00:12]} Qf6 {[%emt 0:00:10]} 50. Qe5 {[%emt 0:00:07]} Qf8+ {[%emt 0:00:06]} 51. Qc5 {[%emt 0:00:01]} Qf6 {[%emt 0:00:09]} 52. Qe5 {[%emt 0:00:07]} Qf8+ {[%emt 0:00:01]} 53. Qc5 {[%emt 0:00:01]} Qf6 {[%emt 0:00:00]} 54. Qe5 {[%emt 0:00:20]} Qf8+ {[%emt 0:00:01]} 1/2-1/2